bitfinex-derivatives/quotes_SOLF0:USTF0_20260102
["timestamp","ask_amount","ask_price","bid_price","bid_amount"]
[1767387547766,0.3680332,131.18,131.12,0.05553448]
[1767387548069,7.2327332,131.18,131.11,0.3441292]
[1767387548272,1.87666645,131.17,131.11,0.3441292]
[1767387548777,1.87666645,131.17,131.13,0.04925235]
[1767387549372,9.10939965,131.18,131.13,0.04925235]
[1767387549581,7.2327332,131.18,131.13,0.04925235]
[1767387549773,7.2332332,131.17,131.13,0.04925235]
[1767387549977,2.24469965,131.16,131.09,0.3441292]
[1767387550775,9.11039965,131.16,131.09,0.3441292]
[1767387550979,0.04810574,131.14,131.11,0.05588449]
[1767387551774,2.24469965,131.18,131.11,0.40001369]
[1767387552080,1.87666645,131.16,131.09,2.22079565]
[1767387552275,1.87666645,131.16,131.09,0.3441292]
[1767387552476,0.3680332,131.2,131.13,0.3441292]
[1767387552683,0.3680332,131.2,131.14,2.22079565]
[1767387552977,0.3680332,131.2,131.15,0.05415736]
[1767387553274,0.3680332,131.22,131.15,0.39828656]
[1767387553478,0.3680332,131.22,131.17,0.05745575]
[1767387554274,7.2305332,131.22,131.17,0.05745575]
[1767387554474,0.3680332,131.26,131.17,0.40158495]
[1767387554670,0.3680332,131.23,131.2,0.05763069]
[1767387554874,0.3680332,131.23,131.15,2.22079565]
[1767387555181,7.2300332,131.23,131.16,7.2096292]
[1767387555383,0.3680332,131.26,131.18,0.3441292]
[1767387555683,0.3680332,131.23,131.15,0.3441292]
[1767387555896,0.05297839,131.2,131.18,0.05721723]
[1767387557397,106.7119,131.27,131.18,0.05721723]
[1767387557398,9.10589965,131.25,131.18,0.05721723]
[1767387557588,2.24469965,131.25,131.19,0.3441292]
[1767387557790,92.36469965,131.27,131.19,2.22079565]
[1767387557989,92.36469965,131.27,131.19,0.3441292]
[1767387558190,92.36469965,131.27,131.22,0.04859172]
[1767387558589,90.4880332,131.27,131.22,0.04859172]
[1767387558984,9.10509965,131.26,131.22,0.04859172]
[1767387559390,2.24469965,131.26,131.22,0.04859172]
[1767387559600,0.3680332,131.26,131.22,0.04859172]
[1767387560794,2.24469965,131.26,131.22,0.04859172]
[1767387561502,25.02530784,131.29,131.22,2.26938737]
[1767387561688,25.39334104,131.29,131.22,2.26938737]
[1767387561891,27.27000749,131.29,131.22,2.26938737]
[1767387562694,18.53424104,131.29,131.22,7.25512092]
[1767387562896,18.53424104,131.29,131.22,9.13178737]
[1767387563096,18.53424104,131.29,131.22,7.25512092]
[1767387563296,0.3680332,131.28,131.22,0.04859172]
[1767387563502,2.24469965,131.28,131.22,0.04859172]
[1767387563702,0.3680332,131.28,131.22,0.04859172]
[1767387564196,106.65,131.35,131.22,0.39272092]
[1767387564402,106.65,131.35,131.27,1.92896598]
[1767387564403,0.3680332,131.35,131.27,1.92896598]
[1767387564600,0.3680332,131.35,131.3,1.93096614]
[1767387564905,0.3680332,131.35,131.3,0.05429969]
[1767387565702,0.3680332,131.35,131.3,1.93096614]
[1767387566005,6.8566,131.34,131.3,1.93096614]
[1767387566392,108.50996645,131.37,131.3,1.93096614]
[1767387566393,0.3680332,131.38,131.32,1.87666645]
[1767387566596,0.3680332,131.38,131.34,0.05045158]
[1767387566797,0.3680332,131.38,131.3,0.3441292]
[1767387566798,0.3680332,131.37,131.31,1.87666645]
[1767387567002,0.3680332,131.37,131.3,2.22079565]
[1767387567400,6.8545,131.38,131.34,1.87666645]
[1767387567603,0.36150236,131.39,131.36,6.645e-05]
[1767387567801,0.05600064,131.37,131.36,6.645e-05]
[1767387568002,0.36150236,131.39,131.36,6.645e-05]
[1767387568303,0.36150236,131.39,131.35,0.05690495]
[1767387568606,0.36150236,131.38,131.32,1.87666645]
[1767387569399,0.36150236,131.38,131.34,0.05516464]
[1767387569607,0.05339927,131.36,131.34,1.93183109]
[1767387569798,0.33839989,131.4,131.34,1.93183109]
[1767387570299,6.8528,131.41,131.36,1.87666645]
[1767387570499,7.19119989,131.41,131.36,1.87666645]
[1767387570701,7.19119989,131.41,131.37,0.05440448]
[1767387571610,7.19119989,131.41,131.37,1.93107093]
[1767387571800,0.33839989,131.38,131.31,0.34947435]
[1767387572202,0.33839989,131.38,131.31,2.2261408]
[1767387572695,0.33839989,131.38,131.31,0.34947435]
[1767387573102,0.39256413,131.36,131.33,0.05587225]
[1767387573412,0.33270039,131.33,131.25,0.34947435]
[1767387574206,0.05715159,131.3,131.28,0.05818565]
[1767387575404,6.91555159,131.3,131.22,0.34947435]
[1767387575615,106.6848,131.3,131.22,0.34947435]
[1767387575905,106.6848,131.3,131.2,0.34947435]
[1767387575906,7.19075571,131.29,131.2,0.34947435]
[1767387576113,0.33165571,131.28,131.2,0.34947435]
[1767387576409,0.05738478,131.25,131.23,0.05766026]
[1767387576808,0.05738478,131.25,131.2,0.34947435]
[1767387577308,0.38801966,131.25,131.17,0.34947435]
[1767387577512,0.33063488,131.25,131.17,0.34947435]
[1767387577810,90.02,131.26,131.2,0.39789842]
[1767387578004,6.8601,131.27,131.2,0.39789842]
[1767387578715,6.8606,131.26,131.2,0.04842407]
[1767387578902,0.05808307,131.24,131.2,0.04842407]
[1767387579303,0.05808307,131.24,131.2,0.39789842]
[1767387579508,0.33839989,131.31,131.23,0.34947435]
[1767387580213,0.33839989,131.29,131.2,0.34947435]
[1767387580414,0.05498059,131.26,131.23,0.05760155]
[1767387581013,0.05498059,131.26,131.2,0.34947435]
[1767387581205,0.05498059,131.26,131.13,106.8171]
[1767387581206,0.39338048,131.26,131.16,0.34947435]
[1767387581506,0.33839989,131.26,131.16,0.34947435]
[1767387581807,107.08829989,131.22,131.2,0.05806323]
[1767387582007,90.427103,131.22,131.12,0.34947435]
[1767387582208,90.37839989,131.22,131.12,0.34947435]
[1767387582809,97.24099989,131.22,131.13,7.21637435]
[1767387583007,0.05011269,131.18,131.15,0.048152]
[1767387584816,90.36300574,131.17,131.06,0.34947435]
[1767387585119,90.36300574,131.17,131.07,0.34947435]
[1767387585312,0.32300574,131.17,131.09,7.21847435]
[1767387585512,90.36254308,131.2,131.1,0.34947435]
[1767387585713,90.36254308,131.2,131.14,0.05377084]
[1767387586110,90.04,131.2,131.14,0.05377084]
[1767387586903,0.04957725,131.18,131.14,0.05377084]
[1767387587116,0.33839989,131.23,131.14,0.05377084]
[1767387587421,0.33839989,131.23,131.15,0.34947435]
[1767387587920,90.39839989,131.23,131.15,0.34947435]
[1767387588115,0.33839989,131.23,131.18,0.05539127]
[1767387588528,0.33839989,131.25,131.18,0.05539127]
[1767387588824,0.33839989,131.25,131.15,0.34947435]
[1767387589009,0.33839989,131.25,131.15,7.21537435]
[1767387589010,6.8621,131.23,131.15,7.21537435]
[1767387589216,6.8621,131.23,131.12,106.8259]
[1767387589217,0.33839989,131.21,131.12,0.34947435]
[1767387589613,0.0556587,131.18,131.15,0.05272445]
[1767387590920,0.39405859,131.18,131.09,0.34947435]
[1767387591117,0.33839989,131.18,131.09,0.34947435]
[1767387591319,6.8652,131.17,131.09,7.21857435]
[1767387591709,90.38066156,131.2,131.12,0.05231713]
[1767387591919,90.38066156,131.2,131.09,4.29590175]
[1767387591920,6.8644,131.19,131.11,7.21747435]
[1767387592622,90.06,131.2,131.13,0.34947435]
[1767387592924,90.41839989,131.23,131.15,0.40662599]
[1767387593126,0.33839989,131.23,131.15,0.34947435]
[1767387593625,90.08,131.25,131.17,0.34947435]
[1767387593818,0.04819443,131.22,131.2,0.05842836]
[1767387594319,0.33839989,131.26,131.2,0.05842836]
[1767387595224,0.33839989,131.23,131.14,0.34947435]
[1767387595424,0.33839989,131.22,131.11,0.34947435]
[1767387595614,90.41839989,131.22,131.11,0.34947435]
[1767387596229,0.05161402,131.18,131.15,0.04903519]
[1767387597431,90.08,131.21,131.15,0.39850954]
[1767387597627,90.08,131.24,131.15,0.39850954]
[1767387597822,0.33839989,131.25,131.16,0.34947435]
[1767387598224,6.8603,131.27,131.18,7.21377435]
[1767387598420,0.04256149,131.24,131.21,0.05171882]
[1767387599026,0.04256149,131.24,131.15,4.29590175]
[1767387599027,0.33839989,131.23,131.13,0.34947435]
[1767387599716,111.06400175,131.2,131.1,0.32373674]
[1767387599930,0.05663576,131.16,131.14,0.05769905]
[1767387600525,90.08,131.21,131.14,0.05769905]
[1767387600718,0.33780505,131.2,131.12,0.32373674]
[1767387601026,0.33780505,131.2,131.13,6.8669]
[1767387601027,7.20140505,131.2,131.13,6.8669]
[1767387601424,107.08420505,131.23,131.15,0.05393144]
[1767387601631,107.08420505,131.23,131.13,7.19063674]
[1767387601632,6.8631,131.21,131.13,7.19063674]
[1767387601831,0.33780505,131.23,131.14,7.19023674]
[1767387602729,7.20010505,131.23,131.17,0.04952872]
[1767387602935,107.05190505,131.27,131.17,0.37326546]
[1767387603140,0.33780505,131.26,131.21,0.05241825]
[1767387604920,90.08,131.28,131.21,0.05241825]
[1767387605723,0.33780505,131.29,131.21,0.05241825]
[1767387605929,7.19690505,131.29,131.24,0.05488924]
[1767387606841,0.33780505,131.29,131.24,0.05488924]
[1767387607535,96.9381,131.31,131.24,0.05488924]
[1767387608030,6.8584,131.3,131.24,0.05488924]
[1767387608235,0.33780505,131.3,131.24,0.05488924]
[1767387609533,6.8594,131.28,131.24,0.05488924]
[1767387609739,0.33780505,131.3,131.24,0.05488924]
[1767387610128,7.19640505,131.3,131.24,0.05488924]
[1767387611239,6.8589,131.29,131.24,0.05488924]
[1767387612339,0.33780505,131.3,131.24,0.05488924]
[1767387613333,7.19620505,131.3,131.24,0.05488924]
[1767387615644,90.08,131.31,131.24,0.37862598]
[1767387616750,97.27560505,131.31,131.24,7.23972598]
[1767387616947,90.41780505,131.31,131.24,0.37862598]
[1767387617345,90.41780505,131.31,131.25,6.8608]
[1767387617546,90.41780505,131.31,131.27,0.05290191]
[1767387617745,90.08,131.31,131.27,0.05290191]
[1767387618347,96.9378,131.31,131.27,0.05290191]
[1767387622053,7.19630505,131.3,131.22,6.862]
[1767387622351,7.19630505,131.3,131.22,0.32373674]
[1767387623240,0.05290191,131.27,131.25,0.05194254]
[1767387624446,7.19630505,131.3,131.25,0.05194254]
[1767387625949,6.8593,131.28,131.25,0.05194254]
[1767387626153,7.24904759,131.28,131.21,6.8624]
[1767387627152,0.38974759,131.28,131.23,0.05364619]
[1767387627347,0.05194254,131.27,131.23,0.05364619]
[1767387627946,0.05194254,131.27,131.23,6.91554619]
[1767387628150,0.05194254,131.27,131.23,7.2548672]
[1767387634754,0.05194254,131.27,131.23,0.05364619]
[1767387636847,0.05194254,131.27,131.23,0.40734101]
[1767387637854,0.05194254,131.27,131.23,7.26914101]
[1767387641863,0.05194254,131.27,131.24,6.8614]
[1767387648068,90.42004623,131.31,131.25,6.8604]
[1767387649063,90.42004623,131.31,131.27,0.05446034]
[1767387649879,97.27784623,131.31,131.27,0.05446034]
[1767387650176,90.42004623,131.31,131.27,0.05446034]
[1767387650378,7.19834623,131.3,131.27,0.05446034]
[1767387657081,90.08,131.31,131.27,0.05446034]
[1767387659089,90.42004623,131.31,131.27,0.05446034]
[1767387661990,90.42004623,131.31,131.22,122.7454]
[1767387661991,0.37984353,131.3,131.23,0.36978423]
[1767387662183,0.37984353,131.3,131.21,0.36978423]
[1767387662388,7.23874353,131.29,131.22,6.8619]
[1767387662692,90.04,131.28,131.22,6.8619]
[1767387662991,0.05446034,131.26,131.24,0.04985388]
[1767387665581,0.43430387,131.26,131.19,0.36978423]
[1767387666390,0.43430387,131.26,131.2,0.36978423]
[1767387666591,0.049696,131.24,131.22,0.04939194]
[1767387666791,90.41760202,131.28,131.22,0.41917617]
[1767387667387,90.41760202,131.28,131.22,7.28137617]
[1767387667587,90.04,131.28,131.23,0.36978423]
[1767387667787,0.05461822,131.27,131.23,0.36978423]
[1767387672395,0.05461822,131.27,131.24,7.23108423]
[1767387672583,0.37984353,131.3,131.24,7.23108423]
[1767387672786,90.41984353,131.3,131.24,7.23108423]
[1767387673302,90.04,131.3,131.25,0.36978423]
[1767387673496,90.04,131.3,131.26,0.04823712]
[1767387673689,90.04,131.3,131.26,0.41802135]
[1767387674687,90.04,131.3,131.28,6.8592]
[1767387677103,2.25328392,131.33,131.29,6.8588]
[1767387677104,0.37984353,131.33,131.29,6.8588]
[1767387677295,90.41984353,131.33,131.3,0.05251413]
[1767387678497,90.04,131.33,131.3,6.91071413]
[1767387678702,1.87344039,131.35,131.3,6.91071413]
[1767387679598,2.25328392,131.35,131.3,6.91071413]
[1767387681301,0.37984353,131.35,131.3,6.91071413]
[1767387693110,0.37984353,131.35,131.3,7.30675242]
[1767387695315,91.91344039,131.36,131.31,0.39603829]
[1767387696425,92.32326408,131.36,131.31,0.39603829]
[1767387698528,92.32326408,131.36,131.3,6.91071413]
[1767387698826,92.32326408,131.36,131.3,7.30675242]
[1767387704328,92.32326408,131.36,131.31,6.8577]
[1767387704530,91.91344039,131.36,131.31,0.39603829]
[1767387705821,91.91344039,131.36,131.32,6.8572]
[1767387706032,91.91344039,131.36,131.33,0.05470798]
[1767387706228,92.32326408,131.36,131.33,0.05470798]
[1767387706635,91.91344039,131.36,131.33,0.05470798]
[1767387706839,0.40982369,131.35,131.3,6.8582]
[1767387707838,0.05017417,131.34,131.31,0.05501993]
[1767387712346,90.04,131.36,131.31,0.45105822]
[1767387713348,90.40982369,131.39,131.32,0.39603829]
[1767387713651,90.40982369,131.39,131.31,1.92846032]
[1767387713652,90.40982369,131.39,131.34,0.44658309]
[1767387714745,90.40982369,131.39,131.35,6.8555]
[1767387718248,90.0,131.39,131.35,6.8555]
[1767387719053,90.0,131.39,131.34,7.30268309]
[1767387719357,90.42845855,131.39,131.34,7.30268309]
[1767387719653,0.42845855,131.37,131.34,0.0505448]
[1767387720045,0.42845855,131.37,131.3,16.41614065]
[1767387720046,2.30189894,131.36,131.3,16.41614065]
[1767387720245,2.30189894,131.36,131.3,0.41614065]
[1767387720843,2.30189894,131.34,131.28,0.41614065]
[1767387721049,0.05403193,131.32,131.3,0.05091853]
[1767387721351,89.98,131.35,131.3,0.46705918]
[1767387721548,77.61762485,131.35,131.32,0.41614065]
[1767387721755,89.98,131.38,131.32,0.41614065]
[1767387721958,89.98,131.38,131.33,0.41614065]
[1767387722149,89.98,131.38,131.34,0.41614065]
[1767387722455,89.98,131.38,131.35,0.05250228]
[1767387722858,90.40845855,131.41,131.35,0.46864293]
[1767387723653,92.28189894,131.41,131.35,0.46864293]
[1767387723854,92.28189894,131.41,131.35,7.32374293]
[1767387724157,92.28189894,131.41,131.35,0.46864293]
[1767387725759,92.28189894,131.41,131.36,6.8549]
[1767387728653,90.40845855,131.41,131.36,6.8549]
[1767387730261,0.42845855,131.4,131.35,0.05250228]
[1767387731767,0.42845855,131.4,131.35,6.90810228]
[1767387732460,0.42845855,131.38,131.29,16.41614065]
[1767387732658,0.42845855,131.36,131.29,0.41614065]
[1767387732853,90.38845855,131.36,131.29,0.41614065]
[1767387733255,90.38845855,131.36,131.3,6.8577]
[1767387733562,0.05045627,131.34,131.32,0.05089474]
[1767387736064,0.47891482,131.34,131.29,6.8588]
[1767387736960,0.47891482,131.34,131.3,0.0576092]
[1767387740866,0.47891482,131.34,131.3,6.9158092]
[1767387741470,0.05045627,131.34,131.31,6.8576]
[1767387741660,0.05045627,131.34,131.3,0.50354526]
[1767387742973,89.96,131.36,131.32,6.8571]
[1767387743766,0.05398743,131.35,131.33,0.05442258]
[1767387749965,0.05398743,131.35,131.33,6.91102258]
[1767387750161,3.39322311,131.39,131.33,6.91102258]
[1767387750162,89.98,131.38,131.33,6.91102258]
[1767387753474,89.98,131.38,131.34,6.856]
[1767387753967,0.47091543,131.41,131.35,6.8556]
[1767387754161,0.47091543,131.41,131.37,0.05257311]
[1767387754162,90.45091543,131.41,131.37,0.05257311]
[1767387758873,0.46289942,131.4,131.37,0.05257311]
[1767387767174,17.62645376,131.44,131.39,6.8535]
[1767387767374,0.46289942,131.43,131.4,0.05638922]
[1767387768576,0.46289942,131.43,131.35,0.49919136]
[1767387768577,0.46289942,131.42,131.35,0.49919136]
[1767387769473,0.46289942,131.42,131.37,0.05802714]
[1767387769683,0.05103824,131.4,131.37,0.05802714]
[1767387771784,0.46289942,131.42,131.37,0.05802714]
[1767387772884,0.46289942,131.42,131.38,6.854]
[1767387778394,0.46289942,131.41,131.37,0.05802714]
[1767387783087,0.55203238,131.39,131.32,0.56150521]
[1767387784086,0.0515273,131.37,131.34,0.05123884]
[1767387786598,0.60355968,131.37,131.34,0.05123884]
[1767387791199,0.0515273,131.37,131.34,0.05123884]
[1767387791392,92.38307958,131.43,131.35,0.56150521]
[1767387791796,0.55203238,131.42,131.35,0.56150521]
[1767387792508,0.55203238,131.42,131.37,0.04845533]
[1767387801414,0.55203238,131.42,131.37,6.90295533]
[1767387801619,0.55203238,131.42,131.37,7.46446054]
[1767387813032,17.62645376,131.44,131.39,0.62171162]
[1767387813232,17.62645376,131.44,131.4,0.67347336]
[1767387814334,17.62645376,131.44,131.4,7.52597336]
[1767387815633,17.62645376,131.44,131.41,0.62171162]
[1767387817234,17.62645376,131.44,131.41,7.47411162]
[1767387820237,17.62645376,131.44,131.4,0.05176174]
[1767387820442,20.07523806,131.44,131.4,0.05176174]
[1767387822737,18.20419086,131.44,131.4,6.90476174]
[1767387822934,17.62645376,131.44,131.4,7.52647336]
[1767387825040,17.62645376,131.44,131.4,0.67347336]
[1767387825246,2.4487843,131.43,131.4,0.05176174]
[1767387834656,0.5777371,131.43,131.4,0.05176174]
[1767387835151,2.4487843,131.43,131.4,0.05176174]
[1767387835653,0.5777371,131.42,131.4,0.05176174]
[1767387835859,2.4487843,131.41,131.35,0.62171162]
[1767387836860,0.05628772,131.39,131.37,0.05571744]
[1767387839760,0.64567128,131.38,131.31,16.60520543]
[1767387839961,1.8710472,131.37,131.31,0.60520543]
[1767387840767,0.05606936,131.35,131.33,0.05156402]
[1767387840969,0.05606936,131.35,131.28,16.60520543]
[1767387840970,1.92711656,131.35,131.28,16.60520543]
[1767387841180,1.92711656,131.35,131.28,0.60520543]
[1767387841879,1.92711656,131.35,131.3,6.8577]
[1767387842079,0.04906766,131.34,131.31,0.05028677]
[1767387842465,0.64567128,131.38,131.31,0.6554922]
[1767387842670,2.51671848,131.38,131.31,0.60520543]
[1767387843278,0.64567128,131.38,131.33,6.8566]
[1767387843480,0.05350057,131.37,131.34,0.0529287]
[1767387843780,2.57021905,131.37,131.3,0.60520543]
[1767387844085,0.64567128,131.37,131.31,0.60520543]
[1767387844776,0.05871682,131.35,131.33,0.05305618]
[1767387864401,9.77881331,131.38,131.33,0.05305618]
[1767387864698,0.64567128,131.37,131.33,0.05305618]
[1767387865399,0.05653164,131.36,131.33,0.05305618]
[1767387868702,0.76484814,131.36,131.33,0.05305618]
[1767387876410,0.72074567,131.35,131.3,6.8582]
[1767387877408,0.72074567,131.35,131.31,0.05128778]
[1767387883017,0.72074567,131.34,131.31,0.05128778]
[1767387883316,0.72074567,131.34,131.29,0.6751024]
[1767387884118,0.05791122,131.33,131.3,0.05294142]
[1767387888826,0.05791122,131.33,131.31,0.6751024]
[1767387892622,0.05791122,131.33,131.3,6.91114142]
[1767387893335,0.05791122,131.33,131.3,0.05294142]
[1767387894438,0.72074567,131.32,131.27,0.6751024]
[1767387894629,0.05791122,131.33,131.27,0.6751024]
[1767387895425,0.05791122,131.33,131.29,0.05094723]
[1767387899436,0.7999568,131.33,131.29,0.05094723]
[1767387900136,7.6566568,131.33,131.29,0.05094723]
[1767387900336,0.74204558,131.32,131.26,6.8598]
[1767387900835,7.59994558,131.31,131.25,0.73927253]
[1767387901429,0.05339799,131.29,131.27,0.05110723]
[1767387903638,7.65424357,131.29,131.23,7.60117253]
[1767387903843,7.60084558,131.29,131.23,7.60117253]
[1767387904743,0.049292,131.27,131.25,0.05796031]
[1767387904930,0.79133758,131.27,131.21,0.73927253]
[1767387905332,0.79133758,131.27,131.24,0.73927253]
[1767387905333,0.049292,131.27,131.24,0.73927253]
[1767387905541,0.74204558,131.31,131.24,0.73927253]
[1767387906448,7.60034558,131.3,131.24,7.60067253]
[1767387906742,0.05095017,131.29,131.26,0.05508669]
[1767387907636,7.65189575,131.29,131.22,7.60117253]
[1767387907941,7.60094558,131.29,131.23,0.73927253]
[1767387908843,0.05449883,131.27,131.25,0.04952855]
[1767387912651,7.65664441,131.27,131.21,0.73927253]
[1767387913057,7.65664441,131.27,131.2,237.96677146]
[1767387913058,0.74204558,131.26,131.2,237.96677146]
[1767387913258,0.74204558,131.26,131.2,238.70604399]
[1767387913558,0.05699949,131.24,131.22,0.05384335]
[1767387914450,0.74204558,131.26,131.22,0.05384335]
[1767387915355,0.04980824,131.25,131.22,0.05384335]
[1767387915852,0.79185382,131.25,131.22,0.05384335]
[1767387916044,0.79185382,131.25,131.18,0.73927253]
[1767387916252,7.60354558,131.24,131.18,7.60377253]
[1767387917145,0.0481816,131.22,131.2,0.05250301]
[1767387919364,0.74204558,131.24,131.2,0.05250301]
[1767387920153,6.861,131.25,131.2,0.05250301]
[1767387920354,0.05205132,131.24,131.2,7.65517554]
[1767387921953,0.05205132,131.24,131.21,0.73927253]
[1767387927754,91.8939361,131.28,131.22,0.82616516]
[1767387927953,90.02,131.28,131.22,0.82616516]
[1767387928759,96.8794,131.28,131.22,7.68856516]
[1767387928960,0.05604083,131.26,131.24,0.05133098]
[1767387938171,0.76673348,131.26,131.24,0.05133098]
[1767387938371,0.76673348,131.26,131.21,6.8629]
[1767387938668,0.76673348,131.26,131.2,16.711025]
[1767387939370,0.76673348,131.26,131.22,0.0556303]
[1767387939869,7.62723348,131.26,131.22,0.0556303]
[1767387943966,7.62723348,131.26,131.22,0.7666553]
[1767387943967,0.05604083,131.26,131.22,0.7666553]
[1767387949275,0.05604083,131.26,131.22,7.6290553]
[1767387949574,0.05604083,131.26,131.22,0.7666553]
[1767387950374,0.05604083,131.26,131.22,0.0556303]
[1767387953579,0.05604083,131.26,131.22,0.7666553]
[1767387959583,6.91644083,131.26,131.22,0.7666553]
[1767387959788,6.91644083,131.26,131.22,0.0556303]
[1767387959988,8.79037693,131.26,131.22,0.0556303]
[1767387961192,1.92997693,131.26,131.22,0.0556303]
[1767387964197,0.05604083,131.26,131.22,0.0556303]
[1767387967301,0.78690306,131.26,131.22,0.0556303]
[1767387968007,2.60479833,131.25,131.22,0.0556303]
[1767387968494,0.73086223,131.25,131.22,0.0556303]
[1767387970597,0.73086223,131.23,131.18,16.0]
[1767387970792,0.73086223,131.23,131.17,0.73052864]
[1767387971002,2.60479833,131.23,131.17,0.73052864]
[1767387971584,0.05565135,131.21,131.19,0.05745039]
[1767387973086,0.05565135,131.21,131.18,0.73052864]
[1767387973489,0.73086223,131.29,131.19,0.73052864]
[1767387974602,0.05805708,131.25,131.23,0.05069249]
[1767387987708,0.83983197,131.25,131.2,0.79829035]
[1767387988011,0.05805708,131.25,131.2,0.79829035]
[1767387988211,0.78177489,131.28,131.22,0.79829035]
[1767387989426,0.05529423,131.26,131.24,0.04833977]
[1767387989811,90.06,131.31,131.24,0.88355777]
[1767387990010,0.81654478,131.32,131.26,0.835218]
[1767387990804,0.04873011,131.3,131.28,0.05553646]
[1767387997219,0.81654478,131.34,131.28,7.75005446]
[1767387997426,0.81654478,131.34,131.28,7.694518]
[1767387998320,0.05826296,131.32,131.3,0.04889799]
[1767387999012,90.85654478,131.36,131.3,0.88411599]
[1767387999909,90.85654478,131.36,131.3,7.74231599]
[1767388000212,0.05632299,131.34,131.3,7.74231599]
[1767388017716,0.05632299,131.34,131.31,6.8577]
[1767388025631,0.87622987,131.34,131.3,0.04889799]
[1767388025830,3.7501737,131.32,131.24,0.81995825]
[1767388026731,3.7501737,131.32,131.27,0.05649592]
[1767388026935,0.0539238,131.29,131.27,0.05649592]
[1767388037239,90.0,131.31,131.27,0.87645417]
[1767388037636,90.0,131.31,131.27,7.73605417]
[1767388038845,0.05833366,131.3,131.27,7.73605417]
[1767388046550,0.05833366,131.3,131.27,0.05649592]
[1767388049172,0.05833366,131.3,131.27,0.85988795]
[1767388049856,0.05833366,131.3,131.28,0.8161136]
[1767388050063,90.0,131.31,131.28,0.8161136]
[1767388050966,90.0585115,131.31,131.28,0.8161136]
[1767388057265,90.0585115,131.31,131.27,6.91619592]
[1767388058265,90.0585115,131.31,131.27,0.05649592]
[1767388058563,90.0585115,131.31,131.24,16.0]
[1767388058564,0.81586052,131.29,131.24,16.8161136]
[1767388058751,0.81586052,131.29,131.24,0.8161136]
[1767388058955,2.68914175,131.26,131.2,0.8161136]
[1767388059158,90.02,131.25,131.2,0.8161136]
[1767388059567,0.05211708,131.24,131.21,0.86755794]
[1767388063069,0.05211708,131.24,131.21,7.73045794]
[1767388064759,90.02,131.27,131.22,6.8619]
[1767388065766,0.0485712,131.26,131.22,6.8619]
[1767388072775,0.0485712,131.26,131.24,6.8613]
[1767388072976,0.0485712,131.26,131.24,6.91051621]
[1767388075274,91.91328123,131.29,131.24,6.91051621]
[1767388075769,92.72914175,131.29,131.24,6.91051621]
[1767388076380,0.05067332,131.28,131.24,6.91051621]
[1767388088787,0.05067332,131.28,131.24,0.04921621]
[1767388095192,0.05067332,131.28,131.24,6.91051621]
[1767388096589,0.05067332,131.28,131.24,0.04921621]
[1767388105507,0.80006411,131.28,131.24,0.04921621]
[1767388108691,0.05067332,131.28,131.24,6.91051621]
[1767388108891,0.66825635,131.31,131.24,0.04921621]
[1767388109899,0.66825635,131.31,131.26,6.8603]
[1767388110103,0.05683997,131.3,131.27,0.05291976]
[1767388117298,0.63099637,131.29,131.22,16.0]
[1767388118208,0.63099637,131.28,131.22,16.0]
[1767388118500,0.05409889,131.26,131.24,0.0578238]
[1767388118701,0.68509526,131.26,131.21,6.8629]
[1767388119801,0.68509526,131.26,131.22,0.04988496]
[1767388121900,7.54549526,131.26,131.22,0.04988496]
[1767388122310,0.68509526,131.26,131.22,0.04988496]
[1767388135108,0.68509526,131.26,131.22,6.91228496]
[1767388140120,0.68509526,131.26,131.23,6.8618]
[1767388140313,0.05409889,131.26,131.23,6.8618]
[1767388140817,6.8588,131.3,131.24,6.8613]
[1767388141010,0.48821248,131.29,131.24,6.8613]
[1767388141913,0.049659,131.28,131.25,0.05662558]
[1767388146719,90.04,131.31,131.25,0.05662558]
[1767388147719,0.05007779,131.29,131.27,6.8594]
[1767388148024,0.05007779,131.29,131.27,6.91288771]
[1767388148222,9.78419879,131.34,131.27,6.91288771]
[1767388148521,99.82419879,131.34,131.27,6.91288771]
[1767388149026,0.48821248,131.33,131.27,6.91288771]
[1767388149220,0.54447723,131.31,131.27,6.91288771]
[1767388154722,2.41751427,131.31,131.27,6.91288771]
[1767388157521,0.54447723,131.31,131.27,6.91288771]
[1767388157721,2.41751427,131.31,131.27,6.91288771]
[1767388163427,0.54447723,131.31,131.27,6.91288771]
[1767388171249,0.54447723,131.31,131.26,6.8603]
[1767388171452,0.48821248,131.31,131.26,6.8603]
[1767388172147,0.05352523,131.3,131.27,0.05363886]
[1767388172451,0.46631006,131.29,131.23,16.0]
[1767388172642,0.46631006,131.29,131.21,124.62823704]
[1767388173353,0.05401256,131.26,131.24,0.05756094]
[1767388173744,0.05401256,131.26,131.24,6.91886094]
[1767388174751,0.46631006,131.29,131.24,6.91886094]
[1767388174952,1.87303704,131.3,131.24,6.91886094]
[1767388175654,0.05223566,131.28,131.24,6.91886094]
[1767388175952,0.05223566,131.28,131.25,6.8607]
[1767388193764,0.51854572,131.28,131.24,0.05756094]
[1767388194371,0.46631006,131.27,131.24,0.05756094]